bitfinex/quotes_BTCUSD_20250916
["timestamp","ask_amount","ask_price","bid_price","bid_amount"]
[1758007081664,0.5192372,116030.0,116020.0,0.32248352]
[1758007082264,0.5192367,116030.0,116020.0,0.32248352]
[1758007083265,0.5458767,116030.0,116020.0,0.29940352]
[1758007083613,0.23424187,116030.0,116020.0,0.29940352]
[1758007083839,0.5458767,116030.0,116020.0,0.47178759]
[1758007084043,0.5458767,116030.0,116020.0,0.32303352]
[1758007084287,0.5213567,116030.0,116020.0,0.32303352]
[1758007084854,0.20760187,116030.0,116020.0,0.49541759]
[1758007085056,0.5192367,116030.0,116020.0,0.49541759]
[1758007085649,0.5192367,116030.0,116020.0,0.32303352]
[1758007086107,0.5192367,116030.0,116020.0,0.49541759]
[1758007086460,0.51317083,116030.0,116020.0,0.32303352]
[1758007086660,0.51923651,116030.0,116020.0,0.32303352]
[1758007087312,0.51317083,116030.0,116020.0,0.49541759]
[1758007087469,0.51317083,116030.0,116020.0,0.32303352]
[1758007087924,0.51923651,116030.0,116020.0,0.32303352]
[1758007088139,0.51317083,116030.0,116020.0,0.32303352]
[1758007088757,0.51923652,116030.0,116020.0,0.32303352]
[1758007089176,0.52135652,116030.0,116020.0,0.32303352]
[1758007090747,0.51529083,116030.0,116020.0,0.49541759]
[1758007090957,0.5192365,116030.0,116020.0,0.49541759]
[1758007093631,0.5160765,116030.0,116020.0,0.49541759]
[1758007094540,0.5192365,116030.0,116020.0,0.49541759]
[1758007095732,0.51923722,116030.0,116020.0,0.49541759]
[1758007096929,0.20760239,116030.0,116020.0,0.49541759]
[1758007097134,0.51923722,116030.0,116020.0,0.49541759]
[1758007097670,0.51607722,116030.0,116020.0,0.49541759]
[1758007098297,0.51923722,116030.0,116020.0,0.49541759]
[1758007100692,0.52135722,116030.0,116020.0,0.49541759]
[1758007101719,0.51607722,116030.0,116020.0,0.49541759]
[1758007101918,0.33764162,116030.0,116020.0,0.49541759]
[1758007102699,0.51001083,116030.0,116020.0,0.49541759]
[1758007104789,0.198376,116030.0,116020.0,0.49541759]
[1758007105037,0.51001083,116030.0,116020.0,0.49541759]
[1758007106395,0.02600679,116030.0,116020.0,0.49541759]
[1758007111760,0.3765537,116030.0,116020.0,0.49541759]
[1758007114537,0.3765537,116030.0,116020.0,0.35181759]
[1758007114903,0.3765537,116030.0,116020.0,0.49541759]
[1758007119261,0.54892291,116030.0,116020.0,0.49541759]
[1758007120156,0.198376,116030.0,116020.0,0.35181759]
[1758007120333,0.54892291,116030.0,116020.0,0.49541759]
[1758007120554,0.54892291,116030.0,116020.0,0.35181759]
[1758007120775,0.55213291,116030.0,116020.0,0.49541759]
[1758007120996,0.55213291,116030.0,116020.0,0.49537759]
[1758007121227,0.55421291,116030.0,116020.0,0.47174759]
[1758007121501,0.57867291,116030.0,116020.0,0.15580352]
[1758007121707,0.57867291,116030.0,116020.0,0.29936352]
[1758007122082,0.57867291,116030.0,116020.0,0.29940352]
[1758007122530,0.92921982,116030.0,116020.0,0.29944352]
[1758007122754,0.58473647,116030.0,116020.0,0.29944352]
[1758007123171,0.58473647,116030.0,116020.0,0.29844352]
[1758007124976,0.58473647,116030.0,116020.0,0.29856352]
[1758007125184,0.58473647,116030.0,116020.0,0.06728]
[1758007125406,1.27528338,116030.0,116020.0,0.21104]
[1758007126257,0.92473647,116030.0,116020.0,0.21104]
[1758007128635,1.27528338,116030.0,116020.0,0.06728]
[1758007128814,1.27528338,116030.0,116020.0,0.211]
[1758007129240,0.92473647,116030.0,116020.0,0.211]
[1758007129667,1.27528338,116030.0,116020.0,0.211]
[1758007130191,1.27628338,116030.0,116020.0,0.211]
[1758007130603,1.27528338,116030.0,116020.0,0.211]
[1758007130955,1.27628338,116030.0,116020.0,0.21]
[1758007134217,0.92573647,116030.0,116020.0,0.21]
[1758007139512,0.17239893,116010.0,116000.0,0.32801823]
[1758007139718,0.87349275,116010.0,116000.0,0.55922175]
[1758007140322,0.70418382,116010.0,116000.0,0.55922175]
[1758007140528,0.7270039,116010.0,116000.0,0.55922175]
[1758007140745,0.89940283,116010.0,116000.0,0.55922175]
[1758007140944,0.89940283,116010.0,116000.0,0.56022175]
[1758007142527,0.02591008,116010.0,116000.0,0.56022175]
[1758007142729,0.37645699,116010.0,116000.0,0.56022175]
[1758007143564,0.02591008,116010.0,116000.0,0.56022175]
[1758007143765,0.37645699,116010.0,116000.0,0.56022175]
[1758007145783,0.02591008,116010.0,116000.0,0.56022175]
[1758007145985,0.37645699,116010.0,116000.0,0.56022175]
[1758007146610,0.02591008,116010.0,116000.0,0.56022175]
[1758007146839,0.02591008,116010.0,116000.0,0.91076866]
[1758007147257,0.02591008,116010.0,116000.0,0.56022175]
[1758007147877,0.37645699,116010.0,116000.0,0.56022175]
[1758007150289,0.02591008,116010.0,116000.0,0.56022175]
[1758007150506,0.37645699,116010.0,116000.0,0.56022175]
[1758007150714,0.02591008,116010.0,116000.0,0.56022175]
[1758007150915,0.02591008,116010.0,116000.0,0.91076866]
[1758007152100,0.02591008,116010.0,116000.0,0.56022175]
[1758007157996,0.02577968,116010.0,116000.0,0.56022175]
[1758007158415,0.02577968,116010.0,116000.0,0.41654175]
[1758007158625,0.37632659,116010.0,116000.0,0.56046175]
[1758007158835,0.37632659,116010.0,116000.0,0.41654175]
[1758007159041,0.37941659,116010.0,116000.0,0.56046175]
[1758007159245,0.02577968,116010.0,116000.0,0.56046175]
[1758007159479,0.37632659,116010.0,116000.0,0.56046175]
[1758007163516,0.02577968,116010.0,116000.0,0.93613524]
[1758007163693,0.02577968,116010.0,116000.0,1.20383524]
[1758007164098,0.02577968,116010.0,116000.0,1.22961492]
[1758007164306,0.0001,116030.0,116020.0,0.17238407]
[1758007164507,0.02600395,116030.0,116020.0,0.40378759]
[1758007164874,0.02600395,116030.0,116020.0,0.42866759]
[1758007165525,0.02600395,116030.0,116020.0,0.7792145]
[1758007165946,0.02590395,116030.0,116020.0,0.7792145]
[1758007166976,0.02590395,116030.0,116020.0,0.42966759]
[1758007167155,0.02590395,116030.0,116020.0,0.7802145]
[1758007167370,0.02590395,116030.0,116020.0,0.42966759]
[1758007167578,0.02590395,116030.0,116020.0,0.7802145]
[1758007167786,0.02590395,116030.0,116020.0,0.42966759]
[1758007167999,0.02590395,116030.0,116020.0,0.7802145]
[1758007168139,0.02590395,116030.0,116020.0,0.7803145]
[1758007171359,0.02590395,116030.0,116020.0,0.42968759]
[1758007172965,0.54094511,116040.0,116030.0,0.17236921]
[1758007173144,0.89365202,116040.0,116030.0,0.32617273]
[1758007173345,0.91955597,116040.0,116030.0,0.32617273]
[1758007173749,0.88058221,116040.0,116030.0,0.32617273]
[1758007175736,0.88058221,116040.0,116030.0,0.46993273]
[1758007176361,0.88058221,116040.0,116030.0,0.46989273]
[1758007180900,0.88058221,116040.0,116030.0,0.32617273]
[1758007181111,0.88058221,116040.0,116030.0,0.46985273]
[1758007184499,0.56900906,116040.0,116030.0,0.46985273]
[1758007187520,0.56900906,116040.0,116030.0,0.47085273]
[1758007193407,0.57507615,116040.0,116030.0,0.47085273]
[1758007195417,0.57507629,116040.0,116030.0,0.47085273]
[1758007196385,0.54792629,116040.0,116030.0,0.49454273]
[1758007196799,0.57355629,116040.0,116030.0,0.47085273]
[1758007204920,0.57355629,116040.0,116030.0,0.29848352]
[1758007205788,0.57355629,116040.0,116030.0,0.47085273]
[1758007208357,0.57355629,116040.0,116030.0,0.29840352]
[1758007208555,0.57355561,116040.0,116030.0,0.29840352]
[1758007209137,0.56748906,116040.0,116030.0,0.29840352]
[1758007209334,0.57355561,116040.0,116030.0,0.29840352]
[1758007209753,0.57355561,116040.0,116030.0,0.47077273]
[1758007209983,0.57455561,116040.0,116030.0,0.47077273]
[1758007210635,0.57355561,116040.0,116030.0,0.47077273]
[1758007213294,0.57355561,116040.0,116030.0,0.46977273]
[1758007215958,0.54482561,116040.0,116030.0,0.46977273]
[1758007216135,0.57439486,116040.0,116030.0,0.46977273]
[1758007217398,0.4020405,116040.0,116030.0,0.49274273]
[1758007217600,0.56832831,116040.0,116030.0,0.49274273]
[1758007219675,0.39597395,116040.0,116030.0,0.46977273]
[1758007219907,0.36640395,116040.0,116030.0,0.49274273]
[1758007223829,0.53875831,116040.0,116030.0,0.49274273]
[1758007224081,0.54175831,116040.0,116030.0,0.49274273]
[1758007224282,0.56832831,116040.0,116030.0,0.46977273]
[1758007224493,0.87990146,116040.0,116030.0,0.29740352]
[1758007224722,0.87990146,116040.0,116030.0,0.32617273]
[1758007224931,0.87990146,116040.0,116030.0,0.46977273]
[1758007229910,0.7075471,116040.0,116030.0,0.46977273]
[1758007230121,0.7075471,116040.0,116030.0,0.49472273]
[1758007230545,0.87990146,116040.0,116030.0,0.49472273]
[1758007230753,0.87990146,116040.0,116030.0,0.55806705]
[1758007231314,0.7075471,116040.0,116030.0,0.55806705]
[1758007231520,0.87990146,116040.0,116030.0,0.55806705]
[1758007231745,0.87990146,116040.0,116030.0,0.53311705]
[1758007233874,0.9188474,116040.0,116030.0,0.53311705]
[1758007236170,0.74649304,116040.0,116030.0,0.53311705]
[1758007236507,0.9188474,116040.0,116030.0,0.53311705]
[1758007238496,0.56832831,116040.0,116030.0,0.53311705]
[1758007238670,0.9188474,116040.0,116030.0,0.53311705]
[1758007239832,0.74649304,116040.0,116030.0,0.53311705]
[1758007242721,0.9188474,116040.0,116030.0,0.53311705]
[1758007245282,0.74649304,116040.0,116030.0,0.53311705]
[1758007245658,0.9188474,116040.0,116030.0,0.53311705]
[1758007247471,0.74649304,116040.0,116030.0,0.53311705]
[1758007253547,0.9188474,116040.0,116030.0,0.53311705]
[1758007258646,0.9188474,116040.0,116030.0,0.53307705]
[1758007259284,0.9188474,116040.0,116030.0,0.38951705]
[1758007259690,0.9188474,116040.0,116030.0,0.53307705]
[1758007260282,0.74649304,116040.0,116030.0,0.53307705]
[1758007262107,0.9188474,116040.0,116030.0,0.53307705]
[1758007263172,0.9188474,116040.0,116030.0,0.53407705]
[1758007264591,0.74649304,116040.0,116030.0,0.53407705]
[1758007264794,0.9188474,116040.0,116030.0,0.53407705]
[1758007267848,0.74649304,116040.0,116030.0,0.53407705]
[1758007268126,0.39597395,116040.0,116030.0,0.53407705]
[1758007268331,0.74649304,116040.0,116030.0,0.53407705]
[1758007270324,0.72207304,116040.0,116030.0,0.55796705]
[1758007271156,0.74518304,116040.0,116030.0,0.55796705]
[1758007271792,0.74303304,116040.0,116030.0,0.55796705]
[1758007272010,0.74515304,116040.0,116030.0,0.55796705]
[1758007273358,0.39463395,116040.0,116030.0,0.53407705]
[1758007273556,0.74515304,116040.0,116030.0,0.55796705]
[1758007274588,0.74515304,116040.0,116030.0,0.53407705]
[1758007283338,1.26802649,116040.0,116030.0,0.39051705]
[1758007283544,1.26802649,116040.0,116030.0,0.53403705]
[1758007284145,1.26802649,116040.0,116030.0,0.47069273]
[1758007284725,0.74515304,116040.0,116030.0,0.47069273]
[1758007284913,1.26802649,116040.0,116030.0,0.47069273]
[1758007286614,0.9175074,116040.0,116030.0,0.47069273]
[1758007287983,0.74515304,116040.0,116030.0,0.47069273]
[1758007288601,0.9175074,116040.0,116030.0,0.47069273]
[1758007288907,0.74515304,116040.0,116030.0,0.47069273]
[1758007289283,0.9175074,116040.0,116030.0,0.47069273]
[1758007290258,1.26802649,116040.0,116030.0,0.47069273]
[1758007291725,1.26802649,116040.0,116030.0,0.32717273]
[1758007291927,1.26802649,116040.0,116030.0,0.47069273]
[1758007292815,0.56698831,116040.0,116030.0,0.47069273]
[1758007293015,1.26802649,116040.0,116030.0,0.47069273]
[1758007294209,1.09567213,116040.0,116030.0,0.47069273]
[1758007295171,0.9175074,116040.0,116030.0,0.47069273]
[1758007295384,0.74515304,116040.0,116030.0,0.47069273]
[1758007295836,0.87857957,116040.0,116030.0,0.47069273]
[1758007297417,0.70622521,116040.0,116030.0,0.47069273]
[1758007297620,0.39463395,116040.0,116030.0,0.47069273]
[1758007300163,0.70622521,116040.0,116030.0,0.47069273]
[1758007302655,0.39463395,116040.0,116030.0,0.47069273]
[1758007304217,0.36640395,116040.0,116030.0,0.49496273]
[1758007305244,0.36640395,116040.0,116030.0,0.5582747]
[1758007305456,0.37155395,116040.0,116030.0,0.5582747]
[1758007305662,0.68314521,116040.0,116030.0,0.5582747]
[1758007305841,0.70621521,116040.0,116030.0,0.5582747]
[1758007306220,0.70621521,116040.0,116030.0,0.5340047]
[1758007306601,0.70621521,116040.0,116030.0,0.5582747]
[1758007308257,0.68314521,116040.0,116030.0,0.5582747]
[1758007308824,0.68103521,116040.0,116030.0,0.5582747]
[1758007310348,0.36944395,116040.0,116030.0,0.5582747]
[1758007310550,0.68103521,116040.0,116030.0,0.5582747]
[1758007311754,0.36944395,116040.0,116030.0,0.5582747]
[1758007312003,0.02640395,116040.0,116030.0,0.86986596]
[1758007312218,0.02640395,116040.0,116030.0,0.89499254]
[1758007312414,0.0005,116040.0,116030.0,0.89511254]
[1758007313351,0.0005,116040.0,116030.0,0.89966571]
[1758007313558,0.0004,116040.0,116030.0,1.29966571]
[1758007313967,0.0004,116040.0,116030.0,1.29866571]
[1758007314179,0.0004,116040.0,116030.0,0.98907445]
[1758007314381,0.0004,116040.0,116030.0,1.30066571]
[1758007318663,0.0004,116040.0,116030.0,1.15702571]
[1758007318871,0.0004,116040.0,116030.0,1.30066571]
[1758007319088,0.0004,116040.0,116030.0,1.30062571]
[1758007319293,0.0004,116040.0,116030.0,0.84543445]
[1758007319493,0.0004,116040.0,116030.0,1.30070571]
[1758007320036,0.0004,116040.0,116030.0,0.98911445]
[1758007320473,0.0004,116040.0,116030.0,0.84543445]
[1758007320839,0.0004,116040.0,116030.0,1.15702571]
[1758007321119,0.0004,116040.0,116030.0,1.30070571]
[1758007322576,0.029,116040.0,116030.0,0.7925847]
[1758007322789,0.34059126,116040.0,116030.0,0.5362647]
[1758007323025,0.029,116040.0,116030.0,0.5362647]
[1758007323244,0.0004,116040.0,116030.0,0.87086596]
[1758007323461,0.02630227,116040.0,116030.0,0.86886596]
[1758007324506,0.02630227,116040.0,116030.0,0.87086596]
[1758007326308,0.02630227,116040.0,116030.0,0.5592747]
[1758007334242,0.02630227,116040.0,116030.0,0.4155947]
[1758007334480,0.02630227,116040.0,116030.0,0.5592347]
[1758007335405,0.02630227,116040.0,116030.0,0.4155947]
[1758007335628,0.05490227,116040.0,116030.0,0.5362247]
[1758007336077,0.03153227,116040.0,116030.0,0.5592347]
[1758007336280,0.02939227,116040.0,116030.0,0.4155947]
[1758007336484,0.02939227,116040.0,116030.0,0.5592347]
[1758007340511,0.02630227,116040.0,116030.0,0.5592347]
[1758007348054,0.02939227,116040.0,116030.0,0.5591547]
[1758007350580,0.02939227,116040.0,116030.0,0.4155947]
[1758007350812,0.05459227,116040.0,116030.0,0.5361047]
[1758007352191,0.05459227,116040.0,116030.0,0.5600747]
[1758007352684,0.02939227,116040.0,116030.0,0.5600747]
[1758007352904,0.02630227,116040.0,116030.0,0.5600747]
[1758007353377,0.02630227,116040.0,116030.0,0.87166596]
[1758007353598,0.00031382,116040.0,116030.0,0.87166596]
[1758007356525,0.00031382,116040.0,116030.0,0.89679254]
[1758007357348,0.00031382,116040.0,116030.0,1.29679254]
[1758007357742,0.00031382,116040.0,116030.0,0.89679254]
[1758007357911,0.00031382,116040.0,116030.0,0.93554209]
[1758007360415,0.00031382,116040.0,116030.0,0.94423334]
[1758007369173,0.00031382,116040.0,116030.0,0.80071334]
[1758007369582,0.00031382,116040.0,116030.0,0.94427334]
[1758007370855,0.00031382,116040.0,116030.0,0.80071334]
[1758007371028,0.00031382,116040.0,116030.0,0.79202209]
[1758007371427,0.00031382,116040.0,116030.0,0.93558209]
[1758007372602,0.00031382,116040.0,116030.0,0.79202209]
[1758007373367,0.00031382,116040.0,116030.0,0.93558209]
[1758007374196,0.00031382,116040.0,116030.0,0.93536109]
[1758007376776,0.00343382,116040.0,116030.0,0.93536109]
[1758007376988,0.00343382,116040.0,116030.0,0.93532109]
[1758007380713,0.00343382,116040.0,116030.0,0.79180109]
[1758007380910,0.02969382,116040.0,116030.0,0.91135109]
[1758007381742,0.02969382,116040.0,116030.0,0.93618109]
[1758007381947,0.00343382,116040.0,116030.0,0.93618109]
[1758007382151,0.00343382,116040.0,116030.0,0.79266109]
[1758007382298,0.00542382,116040.0,116030.0,0.93618109]
[1758007382495,0.00542382,116040.0,116030.0,0.44232028]
[1758007382710,0.02969382,116040.0,116030.0,0.93618109]
[1758007382936,0.02969382,116040.0,116030.0,0.79266109]
[1758007383139,0.02969382,116040.0,116030.0,0.91135109]
[1758007383604,0.02969382,116040.0,116030.0,0.56101028]
[1758007384013,0.02969382,116040.0,116030.0,0.74270451]
[1758007384213,0.02969382,116040.0,116030.0,0.5359637]
[1758007385239,0.02969382,116040.0,116030.0,0.5359237]
[1758007387058,0.02969382,116040.0,116030.0,0.88626451]
[1758007388077,0.02969382,116040.0,116030.0,0.5359237]
[1758007390084,0.38003463,116040.0,116030.0,0.5359637]
[1758007390293,0.9027298,116040.0,116030.0,0.21999449]
[1758007390503,1.2427298,116040.0,116030.0,0.29703252]
[1758007390707,1.2427298,116040.0,116030.0,0.21298]
[1758007390914,1.24879373,116040.0,116030.0,0.21298]
[1758007391125,1.2427298,116040.0,116030.0,0.21098]
[1758007391348,0.56795316,116040.0,116030.0,0.21098]
[1758007391550,1.26863478,116040.0,116030.0,0.21198]
[1758007391757,0.56795316,116040.0,116030.0,0.21214]
[1758007391963,1.26863478,116040.0,116030.0,0.21214]
[1758007392379,1.26863478,116040.0,116030.0,0.21204]
[1758007392775,1.26873478,116040.0,116030.0,0.21204]
[1758007393609,1.26873478,116040.0,116030.0,0.21104]
[1758007393823,1.26973478,116040.0,116030.0,0.06728]
[1758007394050,1.26973478,116040.0,116030.0,0.21104]
[1758007398378,1.27578439,116040.0,116030.0,0.21104]
[1758007399880,1.30162878,116040.0,116030.0,0.001]
[1758007400079,1.30162878,116040.0,116030.0,0.14476]
[1758007400655,1.30162625,116040.0,116030.0,0.14476]
[1758007401093,1.27578186,116040.0,116030.0,0.14476]
[1758007402478,1.27578186,116040.0,116030.0,0.001]
[1758007402717,1.71364619,116040.0,116030.0,0.001]
[1758007403147,1.72976779,116040.0,116030.0,0.001]
[1758007403356,1.87352779,116040.0,116030.0,0.001]
[1758007403565,1.87356779,116040.0,116030.0,0.001]
[1758007404024,1.96000195,116040.0,116030.0,0.001]
[1758007404235,1.95900195,116040.0,116030.0,0.001]
[1758007404406,1.98412853,116040.0,116030.0,0.001]
[1758007404554,1.98612853,116040.0,116030.0,0.001]
[1758007405179,2.03412853,116040.0,116030.0,0.001]
[1758007406460,0.51238407,116020.0,116010.0,0.21004]
[1758007406665,1.21911277,116020.0,116010.0,0.1438]
[1758007406869,0.51241379,116000.0,115990.0,0.13581196]
[1758007407103,0.8627546,116000.0,115990.0,0.3672368]
[1758007407317,0.87078034,116000.0,115990.0,0.3672368]
[1758007407507,0.89818034,116000.0,115990.0,0.29770484]
[1758007407657,0.92409436,116000.0,115990.0,0.29770484]
[1758007407914,0.57375355,116000.0,115990.0,0.21018132]
[1758007408118,0.92419436,116000.0,115990.0,0.06642132]
[1758007408359,0.92419436,116000.0,115990.0,0.21018132]
[1758007409473,0.95312244,116000.0,115990.0,0.21018132]
[1758007409820,0.95312244,116000.0,115990.0,0.00114132]
[1758007410023,0.95312244,116000.0,115990.0,0.14490132]
[1758007410463,0.95312244,116000.0,115990.0,0.00014132]
[1758007410663,0.95312244,116000.0,115990.0,0.14394132]
[1758007410821,1.30446325,116000.0,115990.0,0.00014132]
[1758007411023,1.32054622,116000.0,115990.0,0.14394132]
[1758007411227,0.97020541,116000.0,115990.0,0.14394132]
[1758007411554,0.97020541,116000.0,115990.0,0.00014132]
[1758007412510,1.29161814,116000.0,115990.0,0.00014132]
[1758007412687,0.94127733,116000.0,115990.0,0.00014132]
[1758007413100,1.29161814,116000.0,115990.0,0.00014132]
[1758007415869,1.29160943,116000.0,115990.0,0.00014132]
[1758007417110,0.17242865,115990.0,115980.0,0.1438]
[1758007417312,0.92412027,115990.0,115980.0,0.14394149]
[1758007417893,0.95003908,115990.0,115980.0,0.14394149]
[1758007418340,0.95003153,115990.0,115980.0,0.14394149]
[1758007418653,0.95013153,115990.0,115980.0,0.14394149]
[1758007419896,0.56139687,115990.0,115980.0,0.14394149]
[1758007422798,0.56139687,115990.0,115980.0,0.14592149]
[1758007423354,0.56139687,115990.0,115980.0,0.14394149]
[1758007424558,0.56139687,115990.0,115980.0,0.14592149]
[1758007424753,0.55832687,115990.0,115980.0,0.14592149]
[1758007425214,0.56139687,115990.0,115980.0,0.14592149]
[1758007425948,0.56139687,115990.0,115980.0,0.14394149]
[1758007426104,0.55632687,115990.0,115980.0,0.14592149]
[1758007426306,0.53249687,115990.0,115980.0,0.16949149]
[1758007426753,0.56139687,115990.0,115980.0,0.14592149]
[1758007426958,0.56139687,115990.0,115980.0,0.14394149]
[1758007428201,0.56139687,115990.0,115980.0,0.00014149]
[1758007428571,0.56139687,115990.0,115980.0,0.14386149]
[1758007436328,0.56143113,115990.0,115980.0,0.14386149]
[1758007437308,0.56152511,115990.0,115980.0,0.14386149]
[1758007440217,0.56152511,115990.0,115980.0,0.00014149]
[1758007440428,0.56152511,115990.0,115980.0,0.14382149]
[1758007440836,0.24957815,115990.0,115980.0,0.14382149]
[1758007441043,0.56152511,115990.0,115980.0,0.14382149]
[1758007442122,0.56152511,115990.0,115980.0,0.14591149]
[1758007442461,0.56152511,115990.0,115980.0,0.14382149]
[1758007445861,0.56152511,115990.0,115980.0,0.14591149]
[1758007446438,0.56152511,115990.0,115980.0,0.14382149]
[1758007448701,0.56152511,115990.0,115980.0,0.00014149]
[1758007448917,0.56152511,115990.0,115980.0,0.14382149]
[1758007451436,0.56154294,115990.0,115980.0,0.14382149]
[1758007454905,0.53264294,115990.0,115980.0,0.16947149]
[1758007455118,0.22069598,115990.0,115980.0,0.17253149]
[1758007455325,0.22069598,115990.0,115980.0,0.34497501]
[1758007455326,0.53264294,115990.0,115980.0,0.34497501]
[1758007457117,0.51039442,115990.0,115980.0,0.34497501]
[1758007457721,0.51039442,115990.0,115980.0,0.17253149]
[1758007458336,0.51039442,115990.0,115980.0,0.34191501]
[1758007458512,0.51039442,115990.0,115980.0,0.34497501]
[1758007458728,0.51039442,115990.0,115980.0,0.17253149]
[1758007459644,0.51039442,115990.0,115980.0,0.34497501]
[1758007460440,0.51039442,115990.0,115980.0,0.20129501]
[1758007460850,0.51039442,115990.0,115980.0,0.34493501]
[1758007461055,0.51039442,115990.0,115980.0,0.20129501]
[1758007461261,0.36601881,115990.0,115980.0,0.20129501]
[1758007461516,0.36601881,115990.0,115980.0,0.43245853]
[1758007462088,0.02601881,115990.0,115980.0,0.43253853]
[1758007462708,0.0001,115990.0,115980.0,0.43253853]
[1758007463757,0.3379619,116000.0,115990.0,0.17242865]
[1758007463998,0.3379619,116000.0,115990.0,0.28866217]
[1758007464806,0.3379619,116000.0,115990.0,0.43234217]
[1758007464983,0.3379619,116000.0,115990.0,0.43334217]
[1758007465611,0.02601494,116000.0,115990.0,0.43334217]
[1758007465819,0.02601494,116000.0,115990.0,0.43346217]
[1758007466572,0.02601494,116000.0,115990.0,0.49845294]
[1758007468242,0.3379619,116000.0,115990.0,0.49845294]
[1758007470310,0.02601494,116000.0,115990.0,0.49845294]
[1758007471985,0.02601494,116000.0,115990.0,0.35465294]
[1758007472187,0.02601494,116000.0,115990.0,0.49841294]
[1758007473670,0.02575631,116000.0,115990.0,0.49841294]
[1758007474424,0.02575631,116000.0,115990.0,0.49851294]
[1758007475996,0.02575631,116000.0,115990.0,0.8104599]
[1758007477153,0.02575631,116000.0,115990.0,0.8104199]
[1758007477599,0.02575631,116000.0,115990.0,0.49847294]
[1758007479276,0.02575631,116000.0,115990.0,0.35475294]
[1758007479478,0.02575631,116000.0,115990.0,0.49843294]
[1758007479826,0.02575631,116000.0,115990.0,0.84911753]
[1758007481937,0.02575631,116000.0,115990.0,0.70543753]
[1758007482214,0.02575631,116000.0,115990.0,0.84911753]
[1758007485838,0.36575631,116000.0,115990.0,0.84911753]
[1758007487456,0.36575631,116000.0,115990.0,0.70543753]
[1758007487677,0.36575631,116000.0,115990.0,0.84907753]
[1758007491703,0.36575631,116000.0,115990.0,0.91535753]
[1758007493218,0.36575631,116000.0,115990.0,0.76865753]
[1758007493426,0.36575631,116000.0,115990.0,0.91229753]
[1758007495772,0.02575631,116000.0,115990.0,0.91529753]
[1758007499360,0.02575631,116000.0,115990.0,0.91229753]
[1758007501045,0.7164409,116000.0,115990.0,0.56161294]
[1758007501682,0.36575631,116000.0,115990.0,0.56161294]
[1758007501892,0.7164409,116000.0,115990.0,0.56161294]
[1758007503337,0.36575631,116000.0,115990.0,0.56480294]
[1758007503549,0.36575631,116000.0,115990.0,0.91548753]
[1758007503550,0.02575631,116000.0,115990.0,0.91548753]
[1758007504301,0.71337459,116020.0,116010.0,0.17239893]
[1758007504511,0.71646459,116020.0,116010.0,0.40572245]
[1758007504839,0.71841459,116020.0,116010.0,0.40572245]
[1758007505039,0.71831459,116020.0,116010.0,0.40572245]
[1758007505453,0.34,116020.0,116010.0,0.42850245]
[1758007505664,0.69068459,116020.0,116010.0,0.42850245]
[1758007506476,0.7175934,116020.0,116010.0,0.42850245]
[1758007506948,0.7175934,116020.0,116010.0,0.42860245]
[1758007507453,0.7165934,116020.0,116010.0,0.42860245]
[1758007509790,0.7165934,116020.0,116010.0,0.42960245]
[1758007509995,0.88897747,116020.0,116010.0,0.42960245]
[1758007510199,0.7391834,116020.0,116010.0,0.42960245]
[1758007510862,0.91660747,116020.0,116010.0,0.40682245]
[1758007512678,0.39353881,116020.0,116010.0,0.40682245]
[1758007512891,0.7165934,116020.0,116010.0,0.28596245]
[1758007513092,0.7165934,116020.0,116010.0,0.42956245]
[1758007514898,0.7165934,116020.0,116010.0,0.28596245]
[1758007515124,0.7165934,116020.0,116010.0,0.42956245]
[1758007515543,0.56283288,116020.0,116010.0,0.26318245]
[1758007515750,0.91660747,116020.0,116010.0,0.40678245]
[1758007516341,0.91660747,116020.0,116010.0,0.26318245]
[1758007516568,0.91660747,116020.0,116010.0,0.40678245]
[1758007516767,0.91660747,116020.0,116010.0,0.40462245]
[1758007516971,0.91660747,116020.0,116010.0,0.26102245]
[1758007517179,0.91660747,116020.0,116010.0,0.40462245]
[1758007517796,0.91660747,116020.0,116010.0,0.26102245]
[1758007518182,0.91660747,116020.0,116010.0,0.40462245]
[1758007518674,0.91660747,116020.0,116010.0,0.26102245]
[1758007519103,0.92546039,116020.0,116010.0,0.40462245]
[1758007520443,0.92546039,116020.0,116010.0,0.26102245]
[1758007520654,0.92546039,116020.0,116010.0,0.40462245]
[1758007524922,0.92546039,116020.0,116010.0,0.26102245]
[1758007525158,0.92546039,116020.0,116010.0,0.40462245]
[1758007528538,0.92546039,116020.0,116010.0,0.26102245]
[1758007528848,0.92546039,116020.0,116010.0,0.40462245]
[1758007529507,0.75307632,116020.0,116010.0,0.40462245]
[1758007530276,0.75307632,116020.0,116010.0,0.26102245]
[1758007530498,0.75307632,116020.0,116010.0,0.40462245]
[1758007532909,0.92546039,116020.0,116010.0,0.40462245]
[1758007533117,0.92546039,116020.0,116010.0,0.47090245]
[1758007533939,0.75307632,116020.0,116010.0,0.47090245]
[1758007539938,0.71408392,116020.0,116010.0,0.47090245]
[1758007541061,0.88646799,116020.0,116010.0,0.47090245]
[1758007541352,0.71408392,116020.0,116010.0,0.47090245]
[1758007542462,0.88646799,116020.0,116010.0,0.47090245]
[1758007545014,0.71408392,116020.0,116010.0,0.47090245]
[1758007546794,0.88646799,116020.0,116010.0,0.47090245]
[1758007547012,0.5747758,116020.0,116010.0,0.47086245]
[1758007547249,0.88646799,116020.0,116010.0,0.47086245]
[1758007548460,0.71408392,116020.0,116010.0,0.47086245]
[1758007548689,0.40239173,116020.0,116010.0,0.47288245]
[1758007548821,0.71408392,116020.0,116010.0,0.47086245]
[1758007549045,0.40239173,116020.0,116010.0,0.47086245]
[1758007549249,0.36590881,116020.0,116010.0,0.49698245]
[1758007549457,0.36590881,116020.0,116010.0,0.50009245]
[1758007549657,0.36590881,116020.0,116010.0,0.81178464]
[1758007549658,0.02590881,116020.0,116010.0,0.81178464]
[1758007550069,0.02590881,116020.0,116010.0,0.50009245]
[1758007551110,0.02590881,116020.0,116010.0,0.50862733]
[1758007551648,0.02590881,116020.0,116010.0,0.50009245]
[1758007553302,0.02590881,116020.0,116010.0,0.81178464]
[1758007553663,0.02437382,116040.0,116030.0,0.17236921]
[1758007553664,0.34031382,116040.0,116030.0,0.17236921]
[1758007553869,0.34031382,116040.0,116030.0,0.43268273]
[1758007554278,0.34031382,116040.0,116030.0,0.42957273]
[1758007554728,0.34031382,116040.0,116030.0,0.42969527]
[1758007554910,0.34131382,116040.0,116030.0,0.42969527]
[1758007555113,0.34131382,116040.0,116030.0,0.43281527]
[1758007555613,0.34131382,116040.0,116030.0,0.43291527]
[1758007556577,0.34131382,116040.0,116030.0,0.4987636]
[1758007557118,0.34031382,116040.0,116030.0,0.4987636]
[1758007558299,0.34031382,116040.0,116030.0,0.4997636]
[1758007559841,0.34031382,116040.0,116030.0,0.4966436]
[1758007560269,0.3662161,116040.0,116030.0,0.4966436]
[1758007560632,0.3662161,116040.0,116030.0,0.3530836]
[1758007560837,0.3662161,116040.0,116030.0,0.4966436]
[1758007562033,0.3662161,116040.0,116030.0,0.3530836]
[1758007562251,0.3662161,116040.0,116030.0,0.4966436]
[1758007563726,0.3662161,116040.0,116030.0,0.4997636]